[Event "*** Titled Tuesday Blitz"]
[Site "Chess.com"]
[Date "2019.11.05"]
[Round "8"]
[White "kleinebeer98"]
[Black "SerGo055"]
[Result "0-1"]
[WhiteElo "2681"]
[BlackElo "2556"]
[TimeControl "180+2"]
[EndTime "14:57:44 PST"]
[Termination "SerGo055 won by resignation"]

1. e4 {[%clk 0:02:53.2]} 1... d5 {[%clk 0:02:59.7]} 2. exd5 {[%clk 0:02:50.8]}
2... Qxd5 {[%clk 0:03:01.6]} 3. Nc3 {[%clk 0:02:50.7]} 3... Qd8 {[%clk
0:03:02.4]} 4. g3 {[%clk 0:02:51]} 4... Nf6 {[%clk 0:03:02.3]} 5. Bg2 {[%clk
0:02:52.4]} 5... c6 {[%clk 0:03:01.1]} 6. b3 {[%clk 0:02:51.9]} 6... Bf5 {[%clk
0:02:58.4]} 7. Bb2 {[%clk 0:02:52.9]} 7... e6 {[%clk 0:02:59.7]} 8. Nf3 {[%clk
0:02:53.9]} 8... Be7 {[%clk 0:03:00.5]} 9. O-O {[%clk 0:02:55.4]} 9... O-O
{[%clk 0:03:01.4]} 10. d3 {[%clk 0:02:56.6]} 10... Nbd7 {[%clk 0:03:01.5]} 11.
Re1 {[%clk 0:02:57.1]} 11... a5 {[%clk 0:03:00.4]} 12. h3 {[%clk 0:02:55.8]}
12... h6 {[%clk 0:03:01.1]} 13. a3 {[%clk 0:02:50.9]} 13... Nd5 {[%clk
0:02:56.5]} 14. Ne4 {[%clk 0:02:43.6]} 14... Bh7 {[%clk 0:02:34.1]} 15. Qd2
{[%clk 0:02:40.8]} 15... Nc5 {[%clk 0:02:29]} 16. Rad1 {[%clk 0:02:41.2]} 16...
Nf6 {[%clk 0:01:29.6]} 17. Nxf6+ {[%clk 0:02:19]} 17... Bxf6 {[%clk 0:01:27.6]}
18. Ne5 {[%clk 0:02:20.1]} 18... Qc7 {[%clk 0:00:56.9]} 19. Qe3 {[%clk
0:02:05.1]} 19... Qe7 {[%clk 0:00:36.8]} 20. Bd4 {[%clk 0:01:55.4]} 20... Nd7
{[%clk 0:00:23.9]} 21. Nxd7 {[%clk 0:01:33.2]} 21... Bxd4 {[%clk 0:00:24.8]} 22.
Qxd4 {[%clk 0:01:33.7]} 22... Rfd8 {[%clk 0:00:26.3]} 23. Qb6 {[%clk 0:01:30.7]}
23... Rxd7 {[%clk 0:00:25.2]} 24. b4 {[%clk 0:01:30.8]} 24... axb4 {[%clk
0:00:25]} 25. axb4 {[%clk 0:01:31.8]} 25... Bf5 {[%clk 0:00:21.2]} 26. Ra1
{[%clk 0:01:29.2]} 26... Rxa1 {[%clk 0:00:19.1]} 27. Rxa1 {[%clk 0:01:31.1]}
27... g5 {[%clk 0:00:15.1]} 28. Ra8+ {[%clk 0:01:30.5]} 28... Kg7 {[%clk
0:00:15.8]} 29. Rb8 {[%clk 0:01:28.9]} 29... h5 {[%clk 0:00:10.2]} 30. Qa5
{[%clk 0:01:28.3]} 30... Qd6 {[%clk 0:00:10.1]} 31. Qa8 {[%clk 0:01:26.2]} 31...
Bh7 {[%clk 0:00:09.1]} 32. Rxb7 {[%clk 0:01:24.7]} 32... Rxb7 {[%clk 0:00:09.4]}
33. Qxb7 {[%clk 0:01:26.6]} 33... h4 {[%clk 0:00:05.8]} 34. Qxc6 {[%clk
0:01:26.6]} 34... Qxb4 {[%clk 0:00:06.7]} 35. gxh4 {[%clk 0:01:16.7]} 35... Qe1+
{[%clk 0:00:05.6]} 36. Bf1 {[%clk 0:01:17.4]} 36... gxh4 {[%clk 0:00:06.4]} 37.
Qf3 {[%clk 0:01:18.8]} 37... Bf5 {[%clk 0:00:06.8]} 38. Kg2 {[%clk 0:01:16.8]}
38... Qc1 {[%clk 0:00:07.6]} 39. c4 {[%clk 0:01:10.1]} 39... Qg5+ {[%clk
0:00:08.5]} 40. Kh2 {[%clk 0:01:11.5]} 40... Qd2 {[%clk 0:00:09.5]} 41. Kg1
{[%clk 0:01:05.5]} 41... Qg5+ {[%clk 0:00:09.9]} 42. Qg2 {[%clk 0:01:06.8]}
42... Qxg2+ {[%clk 0:00:08.6]} 43. Kxg2 {[%clk 0:01:08.7]} 43... Kf6 {[%clk
0:00:10]} 44. f4 {[%clk 0:01:03]} 44... Ke7 {[%clk 0:00:07.3]} 45. d4 {[%clk
0:01:01.6]} 45... Kd6 {[%clk 0:00:08.2]} 46. Kf3 {[%clk 0:01:02.8]} 46... f6
{[%clk 0:00:08.9]} 47. Ke3 {[%clk 0:01:01.1]} 47... e5 {[%clk 0:00:07.5]} 48.
c5+ {[%clk 0:00:59.1]} 48... Kc6 {[%clk 0:00:07.7]} 49. Bg2+ {[%clk 0:00:43.5]}
49... Kb5 {[%clk 0:00:09]} 50. c6 {[%clk 0:00:41.2]} 50... exd4+ {[%clk
0:00:08.2]} 51. Kxd4 {[%clk 0:00:42.1]} 51... Kb6 {[%clk 0:00:09.7]} 52. Kd5
{[%clk 0:00:31.8]} 52... Kc7 {[%clk 0:00:08.3]} 53. Kc5 {[%clk 0:00:29.6]} 53...
Be6 {[%clk 0:00:09]} 54. Bf1 {[%clk 0:00:27.3]} 54... Bf5 {[%clk 0:00:10]} 55.
Kd5 {[%clk 0:00:27]} 55... Bc8 {[%clk 0:00:10.8]} 56. Bg2 {[%clk 0:00:23.4]}
56... Bf5 {[%clk 0:00:11.5]} 57. Kd4 {[%clk 0:00:24.7]} 57... Kd6 {[%clk
0:00:11.3]} 58. Ke3 {[%clk 0:00:25.1]} 58... Be6 {[%clk 0:00:09.1]} 59. Kf2
{[%clk 0:00:18]} 59... Bf5 {[%clk 0:00:08]} 60. Ke1 {[%clk 0:00:15.9]} 60... Bd3
{[%clk 0:00:07.4]} 61. Bf3 {[%clk 0:00:13.1]} 61... Bb5 {[%clk 0:00:06.7]} 62.
Kf2 {[%clk 0:00:10.9]} 62... Bxc6 {[%clk 0:00:07.6]} 63. Bg4 {[%clk 0:00:05.9]}
63... Be4 {[%clk 0:00:06.3]} 64. Ke3 {[%clk 0:00:06.8]} 64... Bg2 {[%clk
0:00:04.5]} 65. Bf5 {[%clk 0:00:05.8]} 65... Bd5 {[%clk 0:00:05.3]} 66. Kd4
{[%clk 0:00:06.2]} 66... Be6 {[%clk 0:00:06.5]} 67. Ke4 {[%clk 0:00:07.5]} 67...
Bd5+ {[%clk 0:00:07]} 68. Kd4 {[%clk 0:00:07.8]} 68... Bg2 {[%clk 0:00:08.2]}
69. Bc8 {[%clk 0:00:09.1]} 69... Bf3 {[%clk 0:00:09.3]} 70. Ke3 {[%clk
0:00:09.5]} 70... Bd5 {[%clk 0:00:10.1]} 71. Ba6 {[%clk 0:00:07.7]} 71... Be6
{[%clk 0:00:09.8]} 72. Bf1 {[%clk 0:00:09]} 72... Bf5 {[%clk 0:00:10.2]} 73. Kf3
{[%clk 0:00:10.3]} 73... Kd5 {[%clk 0:00:10.9]} 74. Ba6 {[%clk 0:00:10.5]} 74...
Bxh3 {[%clk 0:00:10]} 75. Bb7+ {[%clk 0:00:11.1]} 75... Kd6 {[%clk 0:00:11.3]}
76. Be4 {[%clk 0:00:09.4]} 76... Be6 {[%clk 0:00:11.9]} 77. f5 {[%clk
0:00:10.2]} 77... Bd5 {[%clk 0:00:12.4]} 78. Bxd5 {[%clk 0:00:07.7]} 78... Kxd5
{[%clk 0:00:14.3]} 79. Kg4 {[%clk 0:00:09.6]} 79... Ke4 {[%clk 0:00:15.2]} 80.
Kxh4 {[%clk 0:00:10.7]} 80... Kxf5 {[%clk 0:00:16.6]} 0-1

[Event "*** Titled Tuesday Blitz"]
[Site "Chess.com"]
[Date "2019.11.05"]
[Round "8"]
[White "gorgeous1083"]
[Black "vanyakuba"]
[Result "0-1"]
[WhiteElo "1995"]
[BlackElo "2394"]
[TimeControl "180+2"]
[EndTime "14:58:13 PST"]
[Termination "vanyakuba won by resignation"]

1. e4 {[%clk 0:03:01.9]} 1... d5 {[%clk 0:03:01.1]} 2. exd5 {[%clk 0:03:00.2]}
2... Qxd5 {[%clk 0:03:03]} 3. d4 {[%clk 0:02:54.6]} 3... e5 {[%clk 0:02:59.7]}
4. dxe5 {[%clk 0:02:39.2]} 4... Qxd1+ {[%clk 0:02:58.8]} 5. Kxd1 {[%clk
0:02:40]} 5... Nc6 {[%clk 0:02:59.4]} 6. f4 {[%clk 0:02:34.9]} 6... Bf5 {[%clk
0:02:47.6]} 7. Be3 {[%clk 0:02:11.5]} 7... O-O-O+ {[%clk 0:02:47.8]} 8. Kc1
{[%clk 0:02:08.8]} 8... f6 {[%clk 0:02:47.5]} 9. Nf3 {[%clk 0:02:06.6]} 9...
Nge7 {[%clk 0:02:42]} 10. exf6 {[%clk 0:02:04.7]} 10... Nd5 {[%clk 0:02:36.8]}
11. Bd2 {[%clk 0:01:58.3]} 11... gxf6 {[%clk 0:02:15.1]} 12. Bb5 {[%clk
0:01:45.2]} 12... Bc5 {[%clk 0:02:04.8]} 13. Re1 {[%clk 0:01:35.9]} 13... Rhg8
{[%clk 0:01:04.6]} 14. Nh4 {[%clk 0:01:32.2]} 14... Bd7 {[%clk 0:00:37.4]} 15.
Nc3 {[%clk 0:01:31.6]} 15... Ndb4 {[%clk 0:00:33.2]} 16. a3 {[%clk 0:01:27.2]}
16... Nxc2 {[%clk 0:00:31]} 17. Bxc6 {[%clk 0:01:23]} 17... Nxa1 {[%clk
0:00:30]} 18. Bd5 {[%clk 0:01:19.3]} 18... Rg4 {[%clk 0:00:26.9]} 19. g3 {[%clk
0:01:14.4]} 19... c6 {[%clk 0:00:22.4]} 20. Ba2 {[%clk 0:01:09.4]} 20... Kc7
{[%clk 0:00:22.2]} 21. f5 {[%clk 0:01:07.1]} 21... Re8 {[%clk 0:00:17.9]} 22.
Bf4+ {[%clk 0:01:06.9]} 22... Bd6 {[%clk 0:00:19.1]} 23. Bxd6+ {[%clk
0:01:02.3]} 23... Kxd6 {[%clk 0:00:21]} 24. Rxe8 {[%clk 0:00:58.3]} 24... Bxe8
{[%clk 0:00:22.9]} 25. Kb1 {[%clk 0:00:58.1]} 25... Rd4 {[%clk 0:00:15.1]} 26.
Kxa1 {[%clk 0:00:46]} 26... Bd7 {[%clk 0:00:16]} 27. Kb1 {[%clk 0:00:38.2]}
27... c5 {[%clk 0:00:16.7]} 28. Kc2 {[%clk 0:00:34.6]} 28... Ke7 {[%clk
0:00:17.7]} 29. Nd5+ {[%clk 0:00:32.6]} 29... Kd6 {[%clk 0:00:06.2]} 30. Nf4
{[%clk 0:00:28.8]} 30... b5 {[%clk 0:00:04]} 31. Kc3 {[%clk 0:00:25.8]} 31...
Re4 {[%clk 0:00:04.3]} 32. Bb1 {[%clk 0:00:19.7]} 32... Re5 {[%clk 0:00:05.4]}
33. Bd3 {[%clk 0:00:16.5]} 33... a5 {[%clk 0:00:06]} 34. Nh5 {[%clk 0:00:12.4]}
34... b4+ {[%clk 0:00:07]} 35. axb4 {[%clk 0:00:12.4]} 35... cxb4+ {[%clk
0:00:07.8]} 36. Kc2 {[%clk 0:00:10.3]} 36... Ke7 {[%clk 0:00:08.6]} 37. h3
{[%clk 0:00:05]} 37... Rc5+ {[%clk 0:00:09.7]} 38. Kd2 {[%clk 0:00:05.5]} 38...
a4 {[%clk 0:00:10.3]} 39. g4 {[%clk 0:00:04.2]} 39... a3 {[%clk 0:00:11.4]} 40.
bxa3 {[%clk 0:00:04.4]} 40... bxa3 {[%clk 0:00:13.3]} 41. Bb1 {[%clk 0:00:03.4]}
41... Rb5 {[%clk 0:00:08.2]} 42. Kc2 {[%clk 0:00:02.5]} 42... Rb2+ {[%clk
0:00:09.2]} 43. Kc1 {[%clk 0:00:03.5]} 43... Rh2 {[%clk 0:00:07.2]} 44. Nf3
{[%clk 0:00:03.6]} 44... Rxh3 {[%clk 0:00:07.4]} 45. Nd4 {[%clk 0:00:05]} 45...
Rh1+ {[%clk 0:00:07.9]} 46. Kc2 {[%clk 0:00:05.7]} 46... Rg1 {[%clk 0:00:07.5]}
47. Nf4 {[%clk 0:00:04.9]} 47... Rxg4 {[%clk 0:00:07.1]} 48. Nfe6 {[%clk
0:00:05.6]} 48... Bxe6 {[%clk 0:00:07.4]} 49. Nxe6 {[%clk 0:00:07.5]} 49... h5
{[%clk 0:00:06.4]} 50. Kb3 {[%clk 0:00:08.5]} 50... Rg3+ {[%clk 0:00:07.2]} 51.
Ka2 {[%clk 0:00:09.5]} 51... h4 {[%clk 0:00:08.6]} 52. Be4 {[%clk 0:00:09.2]}
52... h3 {[%clk 0:00:07.3]} 53. Nf4 {[%clk 0:00:10.6]} 53... h2 {[%clk 0:00:07]}
54. Nh5 {[%clk 0:00:08.5]} 54... Rh3 {[%clk 0:00:05.7]} 55. Nf4 {[%clk
0:00:08.7]} 55... h1=Q {[%clk 0:00:06.1]} 56. Bxh1 {[%clk 0:00:09.4]} 56... Rxh1
{[%clk 0:00:08]} 57. Kxa3 {[%clk 0:00:10.4]} 57... Rf1 {[%clk 0:00:07.4]} 58.
Nd5+ {[%clk 0:00:10.3]} 58... Kf7 {[%clk 0:00:07.8]} 59. Kb4 {[%clk 0:00:04.4]}
59... Rxf5 {[%clk 0:00:08.2]} 60. Ne3 {[%clk 0:00:05.8]} 60... Rf4+ {[%clk
0:00:08.4]} 61. Kc3 {[%clk 0:00:07.1]} 61... Rf3 {[%clk 0:00:08.9]} 62. Kd4
{[%clk 0:00:08.3]} 62... Rf4+ {[%clk 0:00:07.3]} 63. Kd3 {[%clk 0:00:07.5]}
63... Ra4 {[%clk 0:00:07.8]} 64. Ke2 {[%clk 0:00:07]} 64... Ke6 {[%clk
0:00:08.6]} 65. Kf3 {[%clk 0:00:07.2]} 65... f5 {[%clk 0:00:08.6]} 66. Ng2
{[%clk 0:00:06.8]} 66... Re4 {[%clk 0:00:08.7]} 67. Nf4+ {[%clk 0:00:07.7]}
67... Ke5 {[%clk 0:00:09.5]} 68. Ng6+ {[%clk 0:00:09.1]} 68... Kd4 {[%clk
0:00:08.7]} 69. Nf4 {[%clk 0:00:08.8]} 69... Ke5 {[%clk 0:00:09.1]} 70. Ng6+
{[%clk 0:00:09.6]} 70... Kf6 {[%clk 0:00:10.5]} 71. Nf4 {[%clk 0:00:10.3]} 71...
Kg5 {[%clk 0:00:11.5]} 72. Nh3+ {[%clk 0:00:10.5]} 72... Kh4 {[%clk 0:00:11.6]}
73. Nf4 {[%clk 0:00:11.1]} 73... Ra4 {[%clk 0:00:12.2]} 74. Ng2+ {[%clk
0:00:11.2]} 74... Kg5 {[%clk 0:00:12.8]} 75. Ne3 {[%clk 0:00:03.9]} 75... Ra3
{[%clk 0:00:12]} 76. Kf2 {[%clk 0:00:05.3]} 76... f4 {[%clk 0:00:12.6]} 77. Ng2
{[%clk 0:00:04.7]} 77... Ra2+ {[%clk 0:00:12.1]} 78. Kf3 {[%clk 0:00:05.7]}
78... Ra3+ {[%clk 0:00:09]} 79. Kf2 {[%clk 0:00:07.6]} 79... Kg4 {[%clk
0:00:10]} 80. Ne1 {[%clk 0:00:08.4]} 80... Ra2+ {[%clk 0:00:10.2]} 81. Kf1
{[%clk 0:00:08.3]} 81... Kg3 {[%clk 0:00:09]} 82. Nd3 {[%clk 0:00:08.3]} 82...
Ra1+ {[%clk 0:00:05.9]} 83. Ne1 {[%clk 0:00:07.9]} 83... Rxe1+ {[%clk
0:00:04.7]} 84. Kxe1 {[%clk 0:00:08.7]} 84... Kg2 {[%clk 0:00:06.1]} 0-1

[Event "*** Titled Tuesday Blitz"]
[Site "Chess.com"]
[Date "2019.11.05"]
[Round "8"]
[White "coolthing"]
[Black "RiskyDecision"]
[Result "0-1"]
[WhiteElo "2353"]
[BlackElo "2507"]
[TimeControl "180+2"]
[EndTime "14:59:02 PST"]
[Termination "RiskyDecision won by checkmate"]

1. b3 {[%clk 0:03:01.9]} 1... b6 {[%clk 0:02:57.8]} 2. Bb2 {[%clk 0:03:03.8]}
2... Bb7 {[%clk 0:02:59.2]} 3. Nf3 {[%clk 0:03:05.3]} 3... Nf6 {[%clk
0:03:00.2]} 4. e3 {[%clk 0:03:06.8]} 4... e6 {[%clk 0:03:01.2]} 5. Be2 {[%clk
0:03:08.2]} 5... c5 {[%clk 0:03:00.5]} 6. O-O {[%clk 0:03:09.5]} 6... Be7 {[%clk
0:03:01.9]} 7. d4 {[%clk 0:03:11]} 7... O-O {[%clk 0:03:01.9]} 8. c4 {[%clk
0:03:11.8]} 8... cxd4 {[%clk 0:03:02.7]} 9. Nxd4 {[%clk 0:03:12.6]} 9... Nc6
{[%clk 0:02:59.9]} 10. Nc3 {[%clk 0:03:13.8]} 10... Ne5 {[%clk 0:02:58.3]} 11.
Rc1 {[%clk 0:03:05.6]} 11... a6 {[%clk 0:02:57.9]} 12. Na4 {[%clk 0:03:02]}
12... Qc7 {[%clk 0:02:53.7]} 13. h3 {[%clk 0:02:40.2]} 13... Rac8 {[%clk
0:02:49.1]} 14. Nc3 {[%clk 0:02:27.6]} 14... Ba8 {[%clk 0:02:47]} 15. f3 {[%clk
0:02:13.6]} 15... Ng6 {[%clk 0:02:41]} 16. Bd3 {[%clk 0:02:04.3]} 16... Nh5
{[%clk 0:02:36.8]} 17. Qe1 {[%clk 0:01:44.3]} 17... Bh4 {[%clk 0:02:31.8]} 18.
Qd2 {[%clk 0:01:40.4]} 18... Bg3 {[%clk 0:02:17]} 19. Nce2 {[%clk 0:01:36.9]}
19... Bh4 {[%clk 0:02:05.8]} 20. c5 {[%clk 0:01:14.8]} 20... bxc5 {[%clk
0:02:02]} 21. Bxa6 {[%clk 0:01:13.3]} 21... Bb7 {[%clk 0:01:57.6]} 22. Bd3
{[%clk 0:01:05.1]} 22... Qb6 {[%clk 0:01:52.9]} 23. Nb5 {[%clk 0:01:00.3]} 23...
Ba6 {[%clk 0:01:49.3]} 24. a4 {[%clk 0:00:51.1]} 24... d5 {[%clk 0:01:49.8]} 25.
Ba3 {[%clk 0:00:45.1]} 25... Be7 {[%clk 0:01:47.9]} 26. Rc2 {[%clk 0:00:37]}
26... Ne5 {[%clk 0:01:47.5]} 27. Rfc1 {[%clk 0:00:31.7]} 27... Nf6 {[%clk
0:01:47.7]} 28. a5 {[%clk 0:00:17.3]} 28... Qb8 {[%clk 0:01:41.7]} 29. Bxc5
{[%clk 0:00:17.7]} 29... Nxd3 {[%clk 0:01:31.4]} 30. Bxe7 {[%clk 0:00:18.5]}
30... Nxc1 {[%clk 0:01:32.5]} 31. Rxc1 {[%clk 0:00:13.6]} 31... Qxb5 {[%clk
0:01:16.5]} 32. Nd4 {[%clk 0:00:13.3]} 32... Qb7 {[%clk 0:00:47.5]} 33. Bxf8
{[%clk 0:00:13.1]} 33... Kxf8 {[%clk 0:00:48.1]} 34. Rxc8+ {[%clk 0:00:10.6]}
34... Qxc8 {[%clk 0:00:48.1]} 35. Qb4+ {[%clk 0:00:11.9]} 35... Ke8 {[%clk
0:00:45.5]} 36. Qb6 {[%clk 0:00:12.9]} 36... Qb7 {[%clk 0:00:34]} 37. Qd6 {[%clk
0:00:12.4]} 37... Bb5 {[%clk 0:00:20.8]} 38. Nxb5 {[%clk 0:00:05.2]} 38... Qxb5
{[%clk 0:00:21.7]} 39. a6 {[%clk 0:00:06.7]} 39... Nd7 {[%clk 0:00:14.8]} 40. a7
{[%clk 0:00:07.6]} 40... Qb7 {[%clk 0:00:11.5]} 41. Qa3 {[%clk 0:00:05.3]} 41...
Nb6 {[%clk 0:00:11.6]} 42. b4 {[%clk 0:00:06.1]} 42... Na8 {[%clk 0:00:12.3]}
43. Qa4+ {[%clk 0:00:05.8]} 43... Ke7 {[%clk 0:00:12]} 44. b5 {[%clk 0:00:06.9]}
44... f6 {[%clk 0:00:10.6]} 45. Qb4+ {[%clk 0:00:06.8]} 45... Ke8 {[%clk
0:00:10.9]} 46. Qa4 {[%clk 0:00:08]} 46... Kd7 {[%clk 0:00:11]} 47. b6+ {[%clk
0:00:08.1]} 47... Kd6 {[%clk 0:00:11.8]} 48. Qb4+ {[%clk 0:00:09.2]} 48... Kc6
{[%clk 0:00:11.6]} 49. Qa4+ {[%clk 0:00:05.1]} 49... Kxb6 {[%clk 0:00:11.8]} 50.
Qe8 {[%clk 0:00:03.5]} 50... Kxa7 {[%clk 0:00:11.2]} 51. Qxe6 {[%clk 0:00:04.6]}
51... Nb6 {[%clk 0:00:11.1]} 52. Qg8 {[%clk 0:00:05.3]} 52... h6 {[%clk
0:00:11.5]} 53. Qe6 {[%clk 0:00:06.8]} 53... Qc7 {[%clk 0:00:12]} 54. Qe8 {[%clk
0:00:07.9]} 54... Kb7 {[%clk 0:00:12.9]} 55. Qe6 {[%clk 0:00:07]} 55... Qd7
{[%clk 0:00:13.5]} 56. Qg8 {[%clk 0:00:07.2]} 56... Kc7 {[%clk 0:00:14.3]} 57.
Qh7 {[%clk 0:00:08.1]} 57... Nc4 {[%clk 0:00:15.1]} 58. Qd3 {[%clk 0:00:09]}
58... Kc6 {[%clk 0:00:15.1]} 59. e4 {[%clk 0:00:10.1]} 59... Qd6 {[%clk
0:00:15.2]} 60. Qd1 {[%clk 0:00:07.5]} 60... Ne5 {[%clk 0:00:15.4]} 61. Qa4+
{[%clk 0:00:08]} 61... Kc7 {[%clk 0:00:15.8]} 62. Qa7+ {[%clk 0:00:09.6]} 62...
Kd8 {[%clk 0:00:14.8]} 63. Qa5+ {[%clk 0:00:10.7]} 63... Kd7 {[%clk 0:00:13.9]}
64. exd5 {[%clk 0:00:11.8]} 64... Nf7 {[%clk 0:00:13]} 65. Qa7+ {[%clk
0:00:12.6]} 65... Qc7 {[%clk 0:00:11.8]} 66. Qa4+ {[%clk 0:00:13.6]} 66... Kd6
{[%clk 0:00:11.8]} 67. Qf4+ {[%clk 0:00:13.8]} 67... Ne5 {[%clk 0:00:12.8]} 68.
Qe4 {[%clk 0:00:12.3]} 68... Qc5+ {[%clk 0:00:13.7]} 69. Kh2 {[%clk 0:00:13.3]}
69... Qxd5 {[%clk 0:00:15.1]} 70. Qb4+ {[%clk 0:00:14.3]} 70... Ke6 {[%clk
0:00:15.1]} 71. Qb6+ {[%clk 0:00:14.9]} 71... Qd6 {[%clk 0:00:15.5]} 72. Qb3+
{[%clk 0:00:16.1]} 72... Ke7 {[%clk 0:00:16.2]} 73. Kg1 {[%clk 0:00:15]} 73...
Nf7 {[%clk 0:00:16.8]} 74. Qb7+ {[%clk 0:00:15.6]} 74... Qd7 {[%clk 0:00:17.2]}
75. Qb4+ {[%clk 0:00:16.8]} 75... Nd6 {[%clk 0:00:18.2]} 76. Qd4 {[%clk
0:00:16.4]} 76... Kf7 {[%clk 0:00:18.7]} 77. Qd5+ {[%clk 0:00:17.1]} 77... Qe6
{[%clk 0:00:19.6]} 78. Qd4 {[%clk 0:00:17.4]} 78... Qe5 {[%clk 0:00:20]} 79.
Qa7+ {[%clk 0:00:18.2]} 79... Kg6 {[%clk 0:00:20.1]} 80. Qd7 {[%clk 0:00:18.4]}
80... Kh7 {[%clk 0:00:20.4]} 81. Qd8 {[%clk 0:00:18.8]} 81... h5 {[%clk
0:00:19.8]} 82. Qd7 {[%clk 0:00:19.5]} 82... Qd4+ {[%clk 0:00:19.4]} 83. Kh2
{[%clk 0:00:17.8]} 83... h4 {[%clk 0:00:20.2]} 84. Qc6 {[%clk 0:00:16.6]} 84...
Qf4+ {[%clk 0:00:20.8]} 85. Kg1 {[%clk 0:00:17.5]} 85... Nf5 {[%clk 0:00:22.2]}
86. Qc2 {[%clk 0:00:17.9]} 86... Kg6 {[%clk 0:00:21.3]} 87. Qb1 {[%clk
0:00:16.9]} 87... Kg5 {[%clk 0:00:22.2]} 88. Qb5 {[%clk 0:00:16.8]} 88... Qe3+
{[%clk 0:00:22.2]} 89. Kh2 {[%clk 0:00:18]} 89... Qe5+ {[%clk 0:00:23]} 90. f4+
{[%clk 0:00:16.7]} 90... Qxf4+ {[%clk 0:00:22.4]} 91. Kg1 {[%clk 0:00:17.6]}
91... Qe3+ {[%clk 0:00:22.6]} 92. Kh1 {[%clk 0:00:18.3]} 92... Kg6 {[%clk
0:00:21.8]} 93. Qd7 {[%clk 0:00:17.1]} 93... Ng3+ {[%clk 0:00:21.3]} 94. Kh2
{[%clk 0:00:18.4]} 94... Qf4 {[%clk 0:00:20.4]} 95. Kg1 {[%clk 0:00:17.2]} 95...
Nf5 {[%clk 0:00:19.8]} 96. Qe8+ {[%clk 0:00:17.1]} 96... Kg5 {[%clk 0:00:18.5]}
97. Qf7 {[%clk 0:00:15.6]} 97... Qe3+ {[%clk 0:00:18.2]} 98. Kh2 {[%clk
0:00:14.8]} 98... Qe5+ {[%clk 0:00:18.6]} 99. Kh1 {[%clk 0:00:15.6]} 99... g6
{[%clk 0:00:19.3]} 100. Qb7 {[%clk 0:00:15.6]} 100... Qe1+ {[%clk 0:00:18.7]}
101. Kh2 {[%clk 0:00:16.8]} 101... Qe5+ {[%clk 0:00:19.8]} 102. Kh1 {[%clk
0:00:17.9]} 102... Ng3+ {[%clk 0:00:21]} 103. Kh2 {[%clk 0:00:15.9]} 103... f5
{[%clk 0:00:20.2]} 104. Qb6 {[%clk 0:00:13.8]} 104... Nf1+ {[%clk 0:00:18.5]}
105. Kh1 {[%clk 0:00:14.6]} 105... Qh2# {[%clk 0:00:18.9]} 0-1

[Event "*** Titled Tuesday Blitz"]
[Site "Chess.com"]
[Date "2019.11.05"]
[Round "9"]
[White "Bishops83"]
[Black "Iyael"]
[Result "0-1"]
[WhiteElo "2235"]
[BlackElo "2106"]
[TimeControl "180+2"]
[EndTime "15:00:59 PST"]
[Termination "Iyael won by resignation"]

1. e4 {[%clk 0:03:01.9]} 1... c5 {[%clk 0:02:57.3]} 2. Nc3 {[%clk 0:03:02.1]}
2... Nc6 {[%clk 0:02:57.9]} 3. Bb5 {[%clk 0:03:02.3]} 3... e6 {[%clk 0:02:58.1]}
4. Bxc6 {[%clk 0:03:01.8]} 4... bxc6 {[%clk 0:02:58.7]} 5. f4 {[%clk 0:03:03.7]}
5... d5 {[%clk 0:02:56.7]} 6. e5 {[%clk 0:03:04.4]} 6... c4 {[%clk 0:02:56.8]}
7. Nf3 {[%clk 0:03:03.9]} 7... h5 {[%clk 0:02:56.9]} 8. O-O {[%clk 0:03:03.8]}
8... Nh6 {[%clk 0:02:57.8]} 9. d3 {[%clk 0:03:01.6]} 9... cxd3 {[%clk
0:02:56.7]} 10. cxd3 {[%clk 0:03:03.5]} 10... Nf5 {[%clk 0:02:57.8]} 11. Qe1
{[%clk 0:03:02.5]} 11... h4 {[%clk 0:02:55.2]} 12. Bd2 {[%clk 0:02:54.6]} 12...
Qb6+ {[%clk 0:02:54.7]} 13. Kh1 {[%clk 0:02:52.4]} 13... Ng3+ {[%clk 0:02:52.9]}
0-1

[Event "*** Titled Tuesday Blitz"]
[Site "Chess.com"]
[Date "2019.11.05"]
[Round "9"]
[White "cherryandmint"]
[Black "olksuna"]
[Result "1-0"]
[WhiteElo "2820"]
[BlackElo "2601"]
[TimeControl "180+2"]
[EndTime "15:02:25 PST"]
[Termination "cherryandmint won by resignation"]

1. e4 {[%clk 0:03:01.9]} 1... c5 {[%clk 0:03:00.1]} 2. Nf3 {[%clk 0:03:02.8]}
2... Nc6 {[%clk 0:03:00.2]} 3. d4 {[%clk 0:03:04.3]} 3... cxd4 {[%clk
0:03:01.4]} 4. Nxd4 {[%clk 0:03:06.2]} 4... g6 {[%clk 0:03:01.7]} 5. c4 {[%clk
0:03:06]} 5... Bg7 {[%clk 0:03:02.8]} 6. Be3 {[%clk 0:03:07.1]} 6... Nf6 {[%clk
0:03:04]} 7. Nc3 {[%clk 0:03:08.2]} 7... Ng4 {[%clk 0:03:05.6]} 8. Qxg4 {[%clk
0:03:08.1]} 8... Nxd4 {[%clk 0:03:07.1]} 9. Qd1 {[%clk 0:03:09.6]} 9... e5
{[%clk 0:03:08.6]} 10. Bd3 {[%clk 0:03:00.6]} 10... d6 {[%clk 0:03:09]} 11. O-O
{[%clk 0:03:01.6]} 11... O-O {[%clk 0:03:10.5]} 12. Ne2 {[%clk 0:03:01.9]} 12...
Nc6 {[%clk 0:03:05.7]} 13. Qd2 {[%clk 0:03:00.4]} 13... f5 {[%clk 0:03:01.4]}
14. exf5 {[%clk 0:02:54.5]} 14... gxf5 {[%clk 0:02:58.4]} 15. f4 {[%clk
0:02:55.4]} 15... e4 {[%clk 0:02:55.2]} 16. Bc2 {[%clk 0:02:46.9]} 16... Be6
{[%clk 0:02:56.4]} 17. b3 {[%clk 0:02:46.3]} 17... Bxa1 {[%clk 0:02:38.3]} 18.
Rxa1 {[%clk 0:02:48.2]} 18... d5 {[%clk 0:02:39.8]} 19. c5 {[%clk 0:02:48.3]}
19... d4 {[%clk 0:02:31.8]} 20. Nxd4 {[%clk 0:02:48.1]} 20... Nxd4 {[%clk
0:02:33.2]} 21. Bxd4 {[%clk 0:02:49.1]} 21... Qd5 {[%clk 0:02:33.7]} 22. Qe3
{[%clk 0:02:43.4]} 22... Rfd8 {[%clk 0:02:33.8]} 23. Qg3+ {[%clk 0:02:39.3]}
23... Kf8 {[%clk 0:02:31.9]} 24. Qg7+ {[%clk 0:02:38.3]} 24... Ke8 {[%clk
0:02:32.7]} 25. Rd1 {[%clk 0:02:38.4]} 25... Bg8 {[%clk 0:02:19.5]} 26. b4
{[%clk 0:02:36.2]} 26... b5 {[%clk 0:02:17.7]} 27. Bb3 {[%clk 0:02:34.9]} 1-0